[Event "Chinese Championship-B Men 2024"]
[Site "Liaocheng"]
[Date "2024.04.25"]
[Round "9.5"]
[White "Meng, Yihan"]
[Black "Wang, Hao B"]
[Result "1-0"]
[ECO "B51"]
[WhiteElo "2042"]
[BlackElo "2170"]
[Annotator "TA"]
[PlyCount "79"]
[EventDate "2024.04.24"]
[EventType "swiss"]
[EventCountry "CHN"]
[SourceTitle "playchess.com"]
[Source "ChessBase"]
[SourceQuality "1"]
[TimeControl "5400+30"]

{[%evp 14,79,34,16,101,98,99,96,102,95,100,98,90,91,105,92,118,97,120,124,150,131,135,132,129,139,149,148,175,160,160,151,202,200,205,210,365,352,524,525,524,532,663,662,667,654,669,645,776,789,796,772,799,800,773,786,779,768,767,631,612,662,627,632,865,850,1014,993]} 1. e4 {[%emt 0:00:06]} c5 {[%emt 0:00:10]} 2. Nf3 {[%emt 0:00:04]} d6 {[%emt 0:00:33]} 3. Bb5+ {[%emt 0:00:13]} Nc6 {[%emt 0:00:17]} 4. O-O {[%emt 0:00:07]} Bd7 {[%emt 0:00:40]} 5. Re1 {[%emt 0:00:11]} Nf6 {[%emt 0:01:36]} 6. c3 {[%emt 0:00:15]} a6 {[%emt 0:00:59]} 7. Bf1 {[%emt 0:00:10]} Bg4 {[%emt 0:01:12]} 8. d4 {[%emt 0:00:15][%cal Bd2d4,Bd4d5][%mdl 32]} e5 {[%emt 0:03:35]} (8... cxd4 $11 {keeps the balance.} 9. cxd4 e5) 9. d5 $16 {[%emt 0:02:14]} Nb8 {[%emt 0:00:33]} 10. h3 {[%emt 0:01:03]} Bh5 {[%emt 0:00:14] White is better.} 11. a4 {[%emt 0:00:57][%cal Ba2a4,Ba4a5][%mdl 32]} Be7 {[%emt 0:00:37]} 12. Bd3 {[%emt 0:07:37]} O-O {[%emt 0:00:25]} 13. Nbd2 {[%emt 0:00:44]} Nbd7 {[%emt 0:01:27]} 14. a5 {[%emt 0:00:43]} Qc7 {[%emt 0:01:43]} 15. Qe2 {[%emt 0:09:07]} Rac8 {[%emt 0:01:43]} 16. Nc4 {[%emt 0:01:17]} Rfe8 {[%emt 0:00:42]} 17. Be3 {[%emt 0:02:00]} Bg6 {[%emt 0:02:29]} 18. Nfd2 {[%emt 0:02:57]} Nh5 {[%emt 0:04:40]} 19. g3 {[%emt 0:17:38] Against Nf4} Bd8 {[%emt 0:08:44]} 20. b4 {[%emt 0:08:10] White is more active.} Nhf6 {[%emt 0:01:25]} 21. Rec1 {[%emt 0:05:42]} Qb8 {[%emt 0:01:24]} 22. f3 {[%emt 0:01:34]} Nh5 {[%emt 0:01:32]} (22... Be7 $16 23. Bf2 Qc7) 23. Kh2 $18 {[%emt 0:01:28]} Rf8 {[%emt 0:00:04]} 24. Rab1 {[%emt 0:03:07]} f5 $2 {[%emt 0:02:17] [#]} (24... Nhf6 {was worth a try.} 25. b5 axb5) 25. exf5 {[%emt 0:01:58]} Bxf5 {[%emt 0:00:05]} (25... Bf7 $142 26. Ne4 Bxd5 27. Ncxd6 (27. Nexd6 Kh8 $18) 27... Bxe4 28. Bc4+ (28. Nxe4 Kh8 $18) (28. fxe4 Qxd6 29. Rd1 Nxg3 $18) 28... Kh8) 26. Bxf5 {[%emt 0:01:00] White is clearly winning.} Rxf5 {[%emt 0:00:05]} 27. Ne4 {[%emt 0:00:10]} Be7 {[%emt 0:06:52]} 28. bxc5 {[%emt 0:00:14]} dxc5 {[%emt 0:03:31]} 29. d6 {[%emt 0:00:19]} Bd8 {[%emt 0:04:05]} 30. Rb2 {[%emt 0:17:56]} Qa7 {[%emt 0:00:30]} 31. Rcb1 {[%emt 0:01:14]} Rb8 {[%emt 0:00:29]} 32. Qd1 {[%emt 0:05:37]} Rf7 {[%emt 0:07:11]} 33. Qd5 {[%emt 0:00:34][%csl LRb7,LRc5,LRe5]} b5 {[%emt 0:00:42]} 34. axb6 {[%emt 0:01:22]} (34. Bxc5 Qb7 35. Qxb7 Rxb7 $11) 34... Qb7 {[%emt 0:00:04]} 35. Qxb7 {[%emt 0:00:48]} Rxb7 {[%emt 0:00:05]} 36. Kg2 {[%emt 0:03:58]} Nhf6 {[%emt 0:00:05]} 37. Nxc5 {[%emt 0:00:19]} ({Inferior is} 37. Bxc5 Nxe4 38. Bg1 Nxc3 $11) 37... Nxc5 {[%emt 0:00:04]} 38. Bxc5 {[%emt 0:00:02]} Nd5 {[%emt 0:00:05]} 39. Rb3 {[%emt 0:01:25]} Bf6 {[%emt 0:00:39]} 40. Rd1 {[%emt 0:02:22] Weighted Error Value: White=0.13 (very precise) /Black=0.41.  Mistake:       	---       	Black=3      OK:         	White=8     	Black=2      Best:        	White=2     	---} 1-0

[Event "Chinese Championship-B Men 2024"]
[Site "Liaocheng"]
[Date "2024.04.25"]
[Round "9.6"]
[White "Pan, Shi Tian Yu"]
[Black "Xie, Jianjun"]
[Result "1/2-1/2"]
[ECO "C42"]
[WhiteElo "2166"]
[BlackElo "2384"]
[Annotator "TA"]
[PlyCount "89"]
[EventDate "2024.04.24"]
[EventType "swiss"]
[EventCountry "CHN"]
[SourceTitle "playchess.com"]
[Source "ChessBase"]
[SourceQuality "1"]
[TimeControl "5400+30"]

{[%evp 20,89,27,38,41,52,60,31,39,0,0,0,0,0,-3,-38,-28,-69,-65,-76,-85,-82,-74,-72,-34,-92,-46,-52,-48,-45,-36,-58,0,0,0,0,0,0,20,20,20,20,16,16,17,8,15,2,31,12,63,60,52,63,75,72,74,54,72,75,57,58,73,61,70,50,72,0,0,0,0,0]} 1. e4 {[%emt 0:00:03]} e5 {[%emt 0:00:09]} 2. Nf3 {[%emt 0:00:08]} Nf6 {[%emt 0:00:56]} 3. Nxe5 {[%emt 0:00:21]} d6 {[%emt 0:00:02]} 4. Nf3 {[%emt 0:00:13]} Nxe4 {[%emt 0:00:02]} 5. d4 {[%emt 0:00:28]} d5 {[%emt 0:00:05]} 6. Bd3 {[%emt 0:00:05]} Nc6 {[%emt 0:00:07]} 7. O-O {[%emt 0:00:20]} Bg4 {[%emt 0:02:24]} 8. c4 {[%emt 0:01:08]} Nf6 {[%emt 0:00:12]} 9. cxd5 {[%emt 0:01:51]} Nxd5 {[%emt 0:00:06]} 10. Nc3 {[%emt 0:00:49][%cal Bb1c3,Bc3a4,Ba4b2,Bb2d3][%mdl 32]} Be7 {[%emt 0:00:07]} 11. Be4 {[%emt 0:00:35]} Nf6 {[%emt 0:09:21]} 12. Bxc6+ {[%emt 0:00:20]} bxc6 {[%emt 0:02:30]} 13. Be3 {[%emt 0:00:33]} Rb8 {[%emt 0:11:55][%cal Oe8g8] White is slightly better.} 14. b3 {[%emt 0:04:50]} Nd5 {[%emt 0:05:50]} 15. Na4 {[%emt 0:01:54]} O-O {[%emt 0:08:53]} 16. h3 {[%emt 0:01:56]} Bh5 {[%emt 0:07:37]} 17. Nb2 {[%emt 0:07:50]} Bb4 {[%emt 0:12:26]} 18. Nd3 {[%emt 0:07:37]} Nc3 {[%emt 0:03:41]} 19. Qc2 {[%emt 0:00:51]} Bxf3 {[%emt 0:00:02]} 20. gxf3 {[%emt 0:01:04] [#]} Nd5 {[%emt 0:01:18]} 21. Ne5 {[%emt 0:02:14]} Bd6 {[%emt 0:12:31]} 22. Qxc6 {[%emt 0:21:52]} (22. Rae1 $15) 22... Bxe5 {[%emt 0:03:01]} (22... Nxe3 $17 23. fxe3 Bxe5 24. dxe5 Qg5+ 25. Kh1 Qxe5 (25... Qxe3 26. Qe4 $15)) 23. dxe5 $15 {[%emt 0:00:07]} Nxe3 {[%emt 0:00:04]} 24. fxe3 {[%emt 0:00:07]} Qg5+ {[%emt 0:00:03]} 25. Kh1 {[%emt 0:01:04]} Rb6 {[%emt 0:02:43]} ({Better is} 25... Qg3 $15 26. Qc2 Rfe8 (26... Qxe5 27. e4 $17) (26... Qxh3+ 27. Qh2 $17)) 26. f4 $11 {[%emt 0:04:47] [#] Qxb6 is the strong threat.} Qxe5 {[%emt 0:03:54]} 27. fxe5 {[%emt 0:00:07]} Rxc6 {[%emt 0:00:01]} 28. Rac1 {[%emt 0:01:05]} Rxc1 {[%emt 0:01:49]} 29. Rxc1 {[%emt 0:00:07][%mdl 4096] Endgame. KR-KR} Rc8 {[%emt 0:00:01]} 30. Kg2 {[%emt 0:00:36]} Kf8 {[%emt 0:00:01]} 31. Kf3 {[%emt 0:00:06]} Ke7 {[%emt 0:00:09]} 32. Rc6 {[%emt 0:00:22]} Kd7 {[%emt 0:00:10]} 33. Ra6 {[%emt 0:00:05]} Ra8 {[%emt 0:00:51]} 34. Ke4 {[%emt 0:02:16]} Kc8 {[%emt 0:00:16]} (34... Rb8 $1 $11) 35. Kf5 $14 {[%emt 0:03:29] White is more active.} Kb7 {[%emt 0:00:10]} 36. Ra4 {[%emt 0:00:05]} Re8 {[%emt 0:00:37]} 37. Rh4 {[%emt 0:07:18]} h5 {[%emt 0:03:22]} 38. Rb4+ {[%emt 0:03:15]} (38. Rxh5 $2 {perishes.} g6+ 39. Kf6 gxh5 $19) 38... Kc6 {[%emt 0:00:06]} 39. Rc4+ {[%emt 0:00:44]} Kb6 {[%emt 0:00:40]} 40. Rd4 {[%emt 0:00:54]} Kc6 {[%emt 0:01:21] Dodges Rd7} 41. h4 {[%emt 0:03:10]} a5 {[%emt 0:01:13]} 42. e4 {[%emt 0:06:39]} Re6 {[%emt 0:01:58]} 43. Rc4+ {[%emt 0:00:49]} (43. Rd8 $16) 43... Kd7 $11 {[%emt 0:01:02]} 44. Rd4+ {[%emt 0:01:43]} Ke7 {[%emt 0:01:08]} 45. Rc4 {[%emt 0:00:39] Weighted Error Value: White=0.13 (very precise) /Black=0.10 (very precise) .  Mistake:       	White=2     	Black=3      Inaccurate:     	White=4     	Black=2      OK:         	White=13    	Black=17     Best:        	White=1     	Black=2} 1/2-1/2

[Event "Chinese Championship-B Men 2024"]
[Site "Liaocheng"]
[Date "2024.04.25"]
[Round "9.7"]
[White "Wang, Zihang"]
[Black "Jin, Yueheng"]
[Result "1-0"]
[ECO "B40"]
[WhiteElo "1846"]
[BlackElo "2407"]
[Annotator "TA"]
[PlyCount "101"]
[EventDate "2024.04.24"]
[EventType "swiss"]
[EventCountry "CHN"]
[SourceTitle "playchess.com"]
[Source "ChessBase"]
[SourceQuality "1"]
[TimeControl "5400+30"]

{[%evp 11,101,3,4,7,0,-5,22,18,44,47,66,0,50,27,48,27,54,4,56,3,21,22,49,-35,-35,-44,-9,-8,-18,-16,76,80,70,76,91,97,102,106,91,97,89,119,91,39,48,48,155,236,287,159,411,359,443,492,489,519,497,477,520,368,683,673,976,994,1185,1140,1594,1550,2283,1663,6215,4450,9648,11712,29970,10514,29978,29979,29979,29980,29980,29981,29983,29984,29984,29984,29985,29986,29987,29988,29990,29991]} 1. e4 {[%emt 0:00:03]} c5 {[%emt 0:00:04]} 2. Nf3 {[%emt 0:00:05]} e6 {[%emt 0:00:02]} 3. d4 {[%emt 0:00:27]} cxd4 {[%emt 0:00:04]} 4. Nxd4 {[%emt 0:00:05]} Nf6 {[%emt 0:00:03][%cal Bg8f6,Bf6d7,Bd7c5][%mdl 32]} 5. Bd3 {[%emt 0:00:31]} Nc6 {[%emt 0:00:19]} 6. Nxc6 {[%emt 0:00:08]} bxc6 {[%emt 0:00:02]} 7. Bf4 {[%emt 0:01:12]} d5 {[%emt 0:01:26]} 8. Nd2 {[%emt 0:00:08]} Nd7 {[%emt 0:06:16]} 9. O-O {[%emt 0:09:29] The position is equal.} Qf6 {[%emt 0:10:47]} 10. Bg3 {[%emt 0:04:27] Strongly threatening exd5.} Nc5 {[%emt 0:22:49]} 11. e5 {[%emt 0:09:56]} (11. exd5 $14 Nxd3 12. cxd3 cxd5 13. Qb3) 11... Qh6 {[%emt 0:00:04]} (11... Qd8 $11) 12. Nb3 $14 {[%emt 0:04:04]} a5 {[%emt 0:02:36]} 13. Nxc5 {[%emt 0:16:27]} Bxc5 {[%emt 0:00:02]} 14. Qe2 {[%emt 0:00:17]} (14. c4 $14) 14... Qg5 {[%emt 0:03:08]} (14... O-O $11) 15. Kh1 {[%emt 0:09:03]} ({Better is} 15. c4 $1 $14 Bd7 16. Rac1) 15... h5 {[%emt 0:05:06] ...h4 would now be deadly.} 16. f4 {[%emt 0:07:23]} Qg4 {[%emt 0:00:39]} 17. Qxg4 {[%emt 0:05:48]} (17. Rf3 $14 h4 18. Bf2) 17... hxg4 $15 {[%emt 0:00:02]} 18. f5 {[%emt 0:00:07]} Rh5 {[%emt 0:02:24]} 19. f6 {[%emt 0:02:31]} gxf6 {[%emt 0:00:37]} 20. Rxf6 {[%emt 0:02:10]} Be7 {[%emt 0:11:07]} (20... Ba6 $11 {keeps the balance.}) 21. Rf4 $16 {[%emt 0:02:14]} Rxe5 {[%emt 0:19:09] [#]} 22. Rxf7 $1 {[%emt 0:01:37]} Kxf7 {[%emt 0:00:01]} 23. Bxe5 {[%emt 0:00:07]} Ba6 {[%emt 0:00:05]} 24. Rf1+ {[%emt 0:01:40]} Ke8 {[%emt 0:00:02]} 25. Rf4 {[%emt 0:00:37] White is more active.} ({But not} 25. Bg6+ $6 Kd7 26. Rf7 Rf8 $11) 25... Bxd3 {[%emt 0:00:04]} 26. cxd3 {[%emt 0:00:06][%mdl 4096] Endgame. KRB-KRB} g3 {[%emt 0:00:02] [#]} 27. hxg3 {[%emt 0:09:50]} ({White should try} 27. h4 $1 $16) 27... Kd7 {[%emt 0:00:14]} 28. Rf7 {[%emt 0:03:39] And now g4 would win.} Rf8 {[%emt 0:00:09]} (28... Rg8 $1 $14) 29. Rxf8 {[%emt 0:01:13]} Bxf8 {[%emt 0:00:01] KB-KB} 30. g4 {[%emt 0:01:59] Black must now prevent g5.} Ke8 $2 {[%emt 0:00:32] [#] Black cannot hold the game after this.} (30... a4 $16 31. g5 Ke8) 31. a4 $1 $18 {[%emt 0:00:47]} Bc5 {[%emt 0:05:56]} 32. Kh2 {[%emt 0:00:49]} Kf7 {[%emt 0:00:30]} 33. Kg3 {[%emt 0:00:30]} Bb6 {[%emt 0:01:12]} 34. Kf3 {[%emt 0:02:32]} Kg6 {[%emt 0:00:36]} 35. Kf4 {[%emt 0:00:26]} Bd8 {[%emt 0:00:13]} 36. Bd6 {[%emt 0:01:36]} Bf6 {[%emt 0:00:29]} 37. b4 {[%emt 0:01:26]} axb4 {[%emt 0:00:11]} 38. Bxb4 {[%emt 0:00:05]} Bd4 {[%emt 0:00:17]} 39. a5 {[%emt 0:00:33][%cal Ba4a5,Ba5a6,Ba6a7][%mdl 32]} e5+ {[%emt 0:03:21]} 40. Kf3 {[%emt 0:00:10] aiming for Bd6.} Kf6 {[%emt 0:01:06]} 41. Bd6 {[%emt 0:01:50]} Ke6 {[%emt 0:04:08]} 42. Bc7 {[%emt 0:00:15] White threatens Bb6 and mate.} Kd7 {[%emt 0:01:48]} 43. Bb6 {[%emt 0:00:07] Intending Bxd4 and mate.} c5 {[%emt 0:02:36]} 44. a6 {[%emt 0:00:28] White mates.} Kc6 {[%emt 0:00:01]} 45. a7 {[%emt 0:00:07]} Kb7 {[%emt 0:00:02] [#]} 46. g5 $1 {[%emt 0:00:12][%cal Bg4g5,Bg5g6][%mdl 32]} Ka8 {[%emt 0:02:22]} (46... Bb2 47. Bxc5) 47. g6 {[%emt 0:00:07]} Kb7 {[%emt 0:00:02] [#]} 48. Bxc5 $1 {[%emt 0:00:26][%mdl 512]} e4+ (48... Bxc5 49. g7) 49. dxe4 {[%emt 0:00:11]} dxe4+ 50. Kxe4 {[%emt 0:00:07]} Bf6 {[%emt 0:00:59]} 51. Bd4 {[%emt 0:00:07] Weighted Error Value: White=0.12 (very precise) /Black=0.51.  Loses game:     	---       	Black=1      Mistake:       	White=5     	Black=4      Inaccurate:     	---       	Black=6      OK:         	White=15    	Black=6      Best:        	White=4     	Black=2      Strong:       	White=1     	---} 1-0

[Event "Chinese Championship-B Men 2024"]
[Site "Liaocheng"]
[Date "2024.04.25"]
[Round "9.8"]
[White "Xia, Jinnan"]
[Black "Jiang, Haochen"]
[Result "1/2-1/2"]
[ECO "D24"]
[WhiteElo "1819"]
[BlackElo "2381"]
[Annotator "RC"]
[PlyCount "135"]
[EventDate "2024.04.24"]
[EventType "swiss"]
[EventCountry "CHN"]
[SourceTitle "playchess.com"]
[Source "ChessBase"]
[SourceQuality "1"]
[TimeControl "5400+30"]

1. d4 {[%emt 0:00:01]} Nf6 {[%emt 0:01:13]} 2. c4 {[%emt 0:00:04]} e6 {[%emt 0:00:07]} 3. Nf3 {[%emt 0:00:03]} d5 {[%emt 0:00:08]} 4. Nc3 {[%emt 0:00:02]} dxc4 {[%emt 0:00:47]} 5. e3 {[%emt 0:01:33]} a6 {[%emt 0:01:18]} 6. Ne5 {[%emt 0:04:08]} b5 {[%emt 0:04:30]} 7. a4 {[%emt 0:05:46]} b4 {[%emt 0:03:12]} 8. Ne2 {[%emt 0:03:40]} c5 {[%emt 0:08:32]} 9. Nxc4 {[%emt 0:00:20]} Nc6 {[%emt 0:01:43]} 10. b3 {[%emt 0:09:06]} Na5 {[%emt 0:17:33]} 11. Nxa5 {[%emt 0:06:18]} Qxa5 {[%emt 0:00:22]} 12. Bb2 {[%emt 0:03:07]} Bb7 {[%emt 0:00:50]} 13. dxc5 {[%emt 0:06:49]} Rd8 {[%emt 0:06:15]} 14. Qc2 {[%emt 0:07:10]} Bxc5 {[%emt 0:05:28]} 15. Rd1 {[%emt 0:05:52]} O-O {[%emt 0:10:34]} 16. Bxf6 {[%emt 0:04:13]} gxf6 {[%emt 0:00:44]} 17. Nf4 {[%emt 0:00:51]} Bd6 {[%emt 0:01:34]} 18. Bd3 {[%emt 0:05:56]} Bxf4 19. exf4 {[%emt 0:00:35]} f5 {[%emt 0:11:40]} 20. Be2 {[%emt 0:11:45]} Rxd1+ {[%emt 0:02:20]} 21. Bxd1 {[%emt 0:00:42]} Rc8 {[%emt 0:01:01]} 22. Qd3 {[%emt 0:04:58]} Rc3 {[%emt 0:05:23]} 23. Qd6 {[%emt 0:13:11]} Qd5 {[%emt 0:02:31]} 24. Qxb4 {[%emt 0:02:03]} Rc1 {[%emt 0:00:34]} 25. Qd2 {[%emt 0:00:44]} Qe4+ {[%emt 0:00:21]} 26. Qe3 {[%emt 0:00:33]} Qxg2 {[%emt 0:11:59]} 27. Qxc1 {[%emt 0:00:28]} Qxh1+ {[%emt 0:00:02]} 28. Ke2 {[%emt 0:00:49]} Qxh2 {[%emt 0:00:37]} 29. Qc7 {[%emt 0:00:59]} Qg2 {[%emt 0:02:13]} 30. Qd8+ {[%emt 0:01:24]} Kg7 {[%emt 0:00:01]} 31. Qd4+ {[%emt 0:00:04]} Kg6 {[%emt 0:00:35]} 32. Qh8 {[%emt 0:02:42]} Qe4+ {[%emt 0:01:04]} 33. Kf1 {[%emt 0:00:22]} Qh1+ {[%emt 0:00:17]} 34. Ke2 {[%emt 0:00:03]} Bf3+ {[%emt 0:00:26]} 35. Ke3 {[%emt 0:00:03]} Qe1+ {[%emt 0:00:09]} 36. Kxf3 {[%emt 0:00:06]} Qxd1+ {[%emt 0:00:06]} 37. Kg2 {[%emt 0:00:13]} Qg4+ {[%emt 0:00:48]} 38. Kf1 {[%emt 0:00:04]} Qxf4 {[%emt 0:00:47]} 39. Qg8+ {[%emt 0:00:03]} Kf6 {[%emt 0:00:09]} 40. Qxh7 {[%emt 0:00:06]} Ke7 {[%emt 0:01:43]} 41. Qh8 {[%emt 0:00:42]} Qb4 {[%emt 0:00:51]} 42. Qb2 {[%emt 0:00:23]} f4 {[%emt 0:00:23]} 43. Qc2 {[%emt 0:00:42]} Kf6 {[%emt 0:00:38]} 44. Qd3 {[%emt 0:01:03]} a5 {[%emt 0:00:16]} 45. Qd8+ {[%emt 0:00:08]} Kf5 {[%emt 0:00:07]} 46. Qd7 {[%emt 0:01:03]} Qxb3 {[%emt 0:01:03]} 47. Qxf7+ {[%emt 0:00:09]} Ke4 {[%emt 0:00:11]} 48. Qh7+ {[%emt 0:00:32]} Kd4 {[%emt 0:00:52]} 49. Qa7+ {[%emt 0:00:21]} Kd3 {[%emt 0:00:29]} 50. Qxa5 {[%emt 0:01:28]} Qd1+ {[%emt 0:00:26]} 51. Qe1 {[%emt 0:00:27]} Qg4 {[%emt 0:00:33]} 52. Qb1+ {[%emt 0:00:13]} Kc3 {[%emt 0:00:07]} 53. Qc1+ {[%emt 0:01:26]} Kb4 {[%emt 0:00:33]} 54. Qc6 {[%emt 0:01:06]} Qf5 {[%emt 0:00:35]} 55. f3 {[%emt 0:00:36]} Qb1+ {[%emt 0:00:47]} 56. Kf2 {[%emt 0:00:04]} Qa2+ {[%emt 0:00:06]} 57. Kf1 {[%emt 0:00:27]} Qb1+ {[%emt 0:00:48]} 58. Kf2 {[%emt 0:00:06]} Qf5 {[%emt 0:00:30]} 59. Kf1 {[%emt 0:00:44]} Qe5 {[%emt 0:00:33]} 60. Kf2 {[%emt 0:00:41]} Qf5 {[%emt 0:00:32]} 61. Kf1 {[%emt 0:00:18]} Ka5 {[%emt 0:00:29]} 62. Kf2 {[%emt 0:00:26]} Qe5 {[%emt 0:00:15]} 63. Kf1 {[%emt 0:00:30]} Kb4 {[%emt 0:00:33]} 64. Kf2 {[%emt 0:00:12]} Qe3+ {[%emt 0:00:12]} 65. Kf1 {[%emt 0:00:04]} e5 {[%emt 0:01:01]} 66. Qb5+ {[%emt 0:00:17]} Ka3 {[%emt 0:00:18]} 67. Qc6 {[%emt 0:00:46]} Qd3+ {[%emt 0:00:31]} 68. Kg2 {[%emt 0:01:07]} 1/2-1/2

[Event "Chinese Championship-B Men 2024"]
[Site "Liaocheng"]
[Date "2024.04.25"]
[Round "9.9"]
[White "Wu, Yixing"]
[Black "Jin, Hongtao"]
[Result "1-0"]
[ECO "D84"]
[WhiteElo "2348"]
[BlackElo "1903"]
[Annotator "TA"]
[PlyCount "125"]
[EventDate "2024.04.24"]
[EventType "swiss"]
[EventCountry "CHN"]
[SourceTitle "playchess.com"]
[Source "ChessBase"]
[SourceQuality "1"]
[TimeControl "5400+30"]

{[%evp 22,125,17,15,35,40,43,47,82,33,26,22,42,35,37,40,31,31,45,33,35,36,37,38,45,12,18,16,27,30,44,44,44,52,52,50,47,48,48,44,46,35,56,56,56,25,27,42,38,42,169,88,169,169,170,170,198,198,341,319,319,215,237,195,230,230,230,229,580,580,1128,580,580,580,29959,29960,29959,29961,29958,29957,29959,29964,29968,29969,29968,29966,29967,29968,29967,29968,29968,29968,29967,29963,29972,29973,29972,29972,29973,29973,29973,29974,29986,29987,29990,29990]} 1. d4 {[%emt 0:00:03]} Nf6 {[%emt 0:00:13]} 2. c4 {[%emt 0:00:04]} g6 {[%emt 0:00:05]} 3. Nc3 {[%emt 0:00:03]} d5 {[%emt 0:00:07]} 4. Bf4 {[%emt 0:00:03]} Bg7 {[%emt 0:00:45]} 5. e3 {[%emt 0:00:06]} O-O {[%emt 0:01:15]} 6. cxd5 {[%emt 0:00:04]} Nxd5 {[%emt 0:00:43]} 7. Nxd5 {[%emt 0:00:03]} Qxd5 {[%emt 0:00:04]} 8. Bxc7 {[%emt 0:00:02]} Na6 {[%emt 0:03:56]} 9. Bxa6 {[%emt 0:00:07]} Qxg2 {[%emt 0:00:34]} 10. Qf3 {[%emt 0:00:03]} Qxf3 {[%emt 0:00:19]} 11. Nxf3 {[%emt 0:00:02]} bxa6 {[%emt 0:00:11]} 12. Rc1 {[%emt 0:00:02]} Be6 {[%emt 0:19:43]} 13. a3 {[%emt 0:08:14]} Bd5 {[%emt 0:06:37]} 14. Ke2 {[%emt 0:00:05]} e5 {[%emt 0:00:52] White is slightly better.} 15. Bxe5 {[%emt 0:15:39]} (15. dxe5 $16 f6 16. Rhd1) 15... Bxe5 $14 {[%emt 0:00:44]} 16. dxe5 {[%emt 0:00:02]} Rab8 {[%emt 0:04:16]} 17. b4 {[%emt 0:05:50] Strongly threatening Rhd1.} a5 {[%emt 0:00:51]} 18. Rhd1 {[%emt 0:00:03]} (18. bxa5 $2 Rb2+ 19. Nd2 Bxh1 20. Rxh1 Rd8 $19) 18... Bxf3+ {[%emt 0:02:27]} 19. Kxf3 {[%emt 0:00:01]} axb4 {[%emt 0:00:19]} 20. axb4 {[%emt 0:00:01][%mdl 4096] Endgame. KRR-KRR} Rfe8 {[%emt 0:15:26]} 21. Rc5 {[%emt 0:00:42]} Rxb4 {[%emt 0:02:02]} 22. Rd7 {[%emt 0:00:08]} a6 {[%emt 0:00:20]} 23. e4 {[%emt 0:04:09]} Rb5 {[%emt 0:01:39]} 24. Rcc7 {[%emt 0:00:07]} Rbxe5 {[%emt 0:01:14]} 25. Rxf7 {[%emt 0:00:08]} Rxe4 {[%emt 0:01:41]} 26. Rg7+ {[%emt 0:00:11]} Kh8 {[%emt 0:00:05]} 27. Rxh7+ {[%emt 0:00:06]} Kg8 {[%emt 0:00:02]} 28. Rcg7+ {[%emt 0:01:48]} Kf8 {[%emt 0:00:03]} 29. Rf7+ {[%emt 0:00:27]} Kg8 {[%emt 0:00:07][%cal Oe4h4]} 30. Rhg7+ {[%emt 0:00:03]} Kh8 {[%emt 0:00:03]} 31. Rxg6 {[%emt 0:00:05]} R4e6 {[%emt 0:02:06]} 32. Rg4 {[%emt 0:03:21]} a5 {[%emt 0:03:09]} 33. Ra7 {[%emt 0:00:56]} Re5 {[%emt 0:01:41]} 34. h4 {[%emt 0:00:34]} Rf8+ {[%emt 0:02:16]} 35. Rf4 {[%emt 0:02:15]} Rfe8 {[%emt 0:05:00] White stays focused until the end.} ({Better is} 35... Rg8 $1 $14) 36. Kg3 {[%emt 0:01:14]} (36. Rff7 $1 $18) 36... Rc5 {[%emt 0:04:33]} (36... R8e7 $16 {was called for.} 37. Rf8+ Kg7) 37. Rff7 $18 {[%emt 0:04:24]} Rg8+ {[%emt 0:00:49]} 38. Kh3 {[%emt 0:00:06][%csl Ga7][%cal Rf7h7]} Rd8 {[%emt 0:01:46]} 39. f4 {[%emt 0:02:56] Black must now prevent Rh7+.} Rb8 {[%emt 0:09:34]} (39... a4 {was worth a try.} 40. Rh7+ (40. Rxa4 Rg8 $14) 40... Kg8) 40. Rh7+ {[%emt 0:02:58]} Kg8 {[%emt 0:00:15]} 41. Rag7+ {[%emt 0:00:04]} Kf8 {[%emt 0:00:09]} 42. Rg5 {[%emt 0:00:08]} Rbc8 {[%emt 0:03:12] [#]} 43. Kg4 $1 {[%emt 0:02:09] h5 would now be deadly.} a4 {[%emt 0:00:55]} 44. Ra7 {[%emt 0:00:34] aiming for Rxc5.} Rc4 {[%emt 0:02:06]} (44... R8c7 45. Rxa4 Rc2) 45. h5 {[%emt 0:01:03] Threatening mate with h6.} R8c6 {[%emt 0:00:40]} 46. Rf5+ {[%emt 0:02:11]} Kg8 {[%emt 0:00:27]} 47. Kg5 {[%emt 0:02:44] Ra8+ would kill now.} Rc1 {[%emt 0:00:40] [#]} 48. Ra8+ $1 {[%emt 0:00:10] White mates.} (48. Rxa4 Rc7 $11 (48... Rg1+ 49. Kh4 $11)) 48... Rc8 {[%emt 0:00:05]} 49. Rxc8+ {[%emt 0:02:10]} ({Worse is} 49. Rxa4 Rg1+ 50. Kh4 (50. Kf6 Rf8+ 51. Ke6 Re8+ 52. Kd7 Rge1 $11) 50... Rh1+ 51. Kg3 Rc7 $11) 49... Rxc8 {[%emt 0:00:05] KR-KR} 50. Ra5 {[%emt 0:00:02]} Rc1 {[%emt 0:04:51]} 51. Rxa4 {[%emt 0:00:14]} (51. Ra8+ Kg7 $16) 51... Rg1+ {[%emt 0:00:55]} 52. Kf6 {[%emt 0:00:01]} Rb1 {[%emt 0:00:11]} 53. Ra7 {[%emt 0:03:19]} Rb6+ {[%emt 0:00:32]} 54. Kg5 {[%emt 0:00:01]} Rb1 {[%emt 0:00:09]} 55. f5 {[%emt 0:00:21]} Rg1+ {[%emt 0:01:29]} 56. Kf6 {[%emt 0:00:05]} Rb1 {[%emt 0:00:04]} 57. Re7 {[%emt 0:01:03]} Rb6+ {[%emt 0:00:48]} 58. Re6 {[%emt 0:00:06]} Rb1 {[%emt 0:00:28]} 59. Re8+ {[%emt 0:01:02]} Kh7 {[%emt 0:00:04]} 60. Kf7 {[%emt 0:00:09]} Kh6 {[%emt 0:01:05]} 61. f6 {[%emt 0:01:48]} Rb7+ {[%emt 0:00:31]} 62. Kg8 {[%emt 0:00:21]} Rh7 {[%emt 0:03:10]} 63. Re7 {[%emt 0:00:28] Weighted Error Value: White=0.19 (very precise) /Black=0.44.  Mistake:       	White=2     	Black=4      Inaccurate:     	White=3     	Black=3      OK:         	White=18    	Black=8      Best:        	White=2     	Black=2      Strong:       	White=1     	---} 1-0